bitfinex-derivatives/quotes_SOLF0:USTF0_20251101
["timestamp","ask_amount","ask_price","bid_price","bid_amount"]
[1761981847358,2.9,186.16,186.12,2.85]
[1761981847562,2.9,186.14,186.11,4.98846783]
[1761981847869,8.4855657,186.13,186.12,2.85]
[1761981848070,8.48544498,186.13,186.12,2.85]
[1761981849170,4.30046824,186.13,186.12,2.85]
[1761981849469,2.9,186.15,186.12,2.85]
[1761981849666,11.3814766,186.14,186.12,2.85]
[1761981849866,2.9,186.14,186.12,2.85]
[1761981850370,2.9,186.14,186.12,4.68253699]
[1761981851070,2.9,186.21,186.13,2.85]
[1761981851270,2.9,186.19,186.13,2.85]
[1761981851462,2.9,186.17,186.13,2.85]
[1761981851658,11.37416792,186.16,186.13,2.85]
[1761981851864,2.9,186.21,186.14,1.83253699]
[1761981852072,2.9,186.19,186.15,2.85]
[1761981852268,2.9,186.17,186.15,2.85]
[1761981853764,2.9,186.17,186.13,4.98846783]
[1761981853966,107.56,186.26,186.11,2.85]
[1761981853967,2.9,186.15,186.11,2.85]
[1761981854667,2.9,186.15,186.12,4.68253699]
[1761981854869,2.9,186.18,186.13,2.85]
[1761981855072,2.9,186.16,186.13,2.85]
[1761981855566,2.9,186.19,186.15,2.85]
[1761981856174,2.9,186.19,186.16,4.64253699]
[1761981857167,2.9,186.19,186.13,7.6479]
[1761981857368,2.9,186.19,186.15,2.81]
[1761981858268,2.9,186.19,186.14,1.83253699]
[1761981858572,2.94,186.17,186.15,4.11598807]
[1761981858772,2.94,186.17,186.14,1.83253699]
[1761981858960,2.94,186.17,186.15,4.11621808]
[1761981859162,2.94,186.17,186.16,4.11639875]
[1761981861481,2.94,186.17,186.13,2.77]
[1761981861679,2.94,186.17,186.14,4.1151759]
[1761981861879,2.94,186.17,186.15,4.1151759]
[1761981862082,2.94,186.17,186.16,4.1151759]
[1761981863481,2.94,186.17,186.13,2.77]
[1761981863681,2.94,186.17,186.14,4.11498564]
[1761981863881,2.94,186.17,186.15,4.11498564]
[1761981864075,2.94,186.17,186.13,2.77]
[1761981864270,2.94,186.17,186.14,4.11518988]
[1761981864470,2.94,186.17,186.15,4.11518988]
[1761981864673,2.94,186.17,186.13,2.77]
[1761981864874,2.94,186.17,186.14,4.11504203]
[1761981865074,2.94,186.17,186.15,4.11504203]
[1761981865274,2.94,186.17,186.13,2.77]
[1761981865474,2.94,186.17,186.14,4.11521316]
[1761981865675,2.94,186.17,186.15,4.11521316]
[1761981865975,2.94,186.17,186.13,2.77]
[1761981866175,2.94,186.17,186.14,4.11521316]
[1761981866371,2.94,186.17,186.15,4.11521316]
[1761981866580,2.94,186.17,186.13,2.77]
[1761981866780,2.94,186.17,186.14,4.11550075]
[1761981866980,2.94,186.17,186.15,4.11550075]
[1761981867178,2.94,186.17,186.16,4.11533932]
[1761981867877,2.76,186.24,186.16,6.88533932]
[1761981868077,2.76,186.22,186.16,2.77]
[1761981868282,2.76,186.2,186.16,2.77]
[1761981868481,2.76,186.18,186.16,2.77]
[1761981869586,2.76,186.21,186.16,2.77]
[1761981869774,2.76,186.19,186.16,2.77]
[1761981869978,8.3907603,186.18,186.16,2.77]
[1761981870188,2.76,186.19,186.16,2.77]
[1761981870485,8.39080127,186.18,186.16,2.77]
[1761981870683,2.76,186.19,186.16,2.77]
[1761981870886,8.39228658,186.18,186.16,2.77]
[1761981871080,2.76,186.19,186.17,6.88681424]
[1761981871387,8.39391037,186.18,186.17,2.77]
[1761981871589,8.39391037,186.18,186.17,6.8876453]
[1761981871888,2.76,186.17,186.14,2.77]
[1761981872089,2.76,186.17,186.15,4.11783832]
[1761981872290,2.76,186.17,186.16,4.11783832]
[1761981874586,6.91935851,186.17,186.16,4.11783832]
[1761981874786,6.91935851,186.17,186.11,55.86692309]
[1761981874787,2.76,186.16,186.11,4.96309997]
[1761981875090,2.76,186.14,186.09,4.96309997]
[1761981875387,2.85852309,186.19,186.09,4.96309997]
[1761981875388,2.76,186.12,186.09,4.96309997]
[1761981875590,2.76,186.12,186.09,7.73309997]
[1761981878290,2.76,186.12,186.1,4.96309997]
[1761981878784,2.76,186.12,186.1,7.73309997]
[1761981879591,2.76,186.19,186.1,7.73309997]
[1761981879793,2.76,186.17,186.1,7.73309997]
[1761981879995,2.76,186.15,186.11,2.77]
[1761981880195,11.17693781,186.14,186.11,2.77]
[1761981880395,8.41693781,186.13,186.11,2.77]
[1761981880597,8.41693781,186.12,186.11,2.77]
[1761981881300,11.17693781,186.12,186.1,4.96309997]
[1761981881598,8.42121232,186.11,186.1,4.96309997]
[1761981881792,4.25148319,186.11,186.1,4.96309997]
[1761981882197,8.42138177,186.11,186.1,4.96309997]
[1761981885700,11.18138177,186.11,186.1,4.96309997]
[1761981886900,11.18138177,186.11,186.1,9.08201475]
[1761981887200,8.42138177,186.11,186.1,6.78891478]
[1761981895713,8.36547195,186.11,186.1,6.78891478]
[1761981896515,4.19557337,186.11,186.1,6.78891478]
[1761981896706,7.11557337,186.12,186.1,6.78891478]
[1761981896909,4.19557337,186.11,186.1,2.67]
[1761981897213,7.11557337,186.11,186.1,4.12183699]
[1761981898114,4.19557337,186.11,186.1,6.79183699]
[1761981898309,7.11557337,186.12,186.1,6.79183699]
[1761981898615,4.19557337,186.11,186.1,2.67]
[1761981898911,4.19557337,186.11,186.1,6.79119693]
[1761981901517,7.11557337,186.11,186.1,4.12119693]
[1761981904130,7.11533494,186.11,186.1,4.12119693]
[1761981908033,2.92,186.1,186.04,4.99229293]
[1761981908234,2.92,186.08,186.05,4.12132049]
[1761981908436,4.19533494,186.07,186.06,4.12132049]
[1761981908936,7.11533494,186.07,186.06,4.12132049]
[1761981911033,7.11122961,186.07,186.06,4.12132049]
[1761981914434,4.19122961,186.07,186.06,6.79132049]
[1761981914631,2.92,186.08,186.06,4.12132049]
[1761981914826,7.11122961,186.07,186.04,2.67]
[1761981915027,4.19122961,186.06,186.05,4.1174311]
[1761981915437,7.11122961,186.06,186.05,4.1174311]
[1761981917933,4.19122961,186.06,186.05,6.9674311]
[1761981918438,4.19122961,186.06,186.05,2.85]
[1761981918638,2.93,186.1,186.05,2.85]
[1761981918833,4.13270565,186.09,186.05,2.85]
[1761981919230,4.13270565,186.09,186.06,2.85]
[1761981920038,4.13270565,186.08,186.06,2.85]
[1761981920239,2.86,186.12,186.06,2.85]
[1761981920437,4.13375551,186.11,186.07,2.77]
[1761981920638,4.13375551,186.1,186.07,2.77]
[1761981920840,4.13375551,186.09,186.07,2.77]
[1761981921138,4.13375551,186.08,186.07,2.77]
[1761981921334,4.13375551,186.11,186.07,2.77]
[1761981921536,4.13375551,186.1,186.07,2.77]
[1761981921735,4.13375551,186.09,186.07,2.77]
[1761981921936,1.8308819,186.16,186.07,2.77]
[1761981921937,4.13375551,186.08,186.07,2.77]
[1761981923130,4.13375551,186.09,186.07,2.77]
[1761981923433,4.13375551,186.08,186.07,2.77]
[1761981924630,4.13375551,186.09,186.07,2.77]
[1761981925337,2.86,186.12,186.07,2.77]
[1761981925639,4.1346966,186.11,186.08,2.77]
[1761981925833,4.1346966,186.1,186.08,2.77]
[1761981926034,4.1346966,186.09,186.08,2.77]
[1761981926229,6.9946966,186.11,186.08,2.77]
[1761981926435,4.1346966,186.1,186.08,2.77]
[1761981929243,4.1346966,186.09,186.08,2.77]
[1761981929432,4.1346966,186.1,186.08,2.77]
[1761981929636,2.86,186.11,186.08,2.77]
[1761981929637,4.1346966,186.09,186.08,2.77]
[1761981930037,2.86,186.14,186.09,2.77]
[1761981930236,6.99562156,186.13,186.09,2.77]
[1761981930436,4.13562156,186.12,186.09,2.77]
[1761981930744,4.13562156,186.11,186.09,2.77]
[1761981930931,4.13562156,186.1,186.09,2.77]
[1761981931845,4.13562156,186.12,186.09,2.77]
[1761981932136,4.13562156,186.11,186.09,2.77]
[1761981932338,2.86,186.13,186.1,2.77]
[1761981932642,4.13607512,186.12,186.1,2.77]
[1761981932842,4.13607512,186.11,186.1,2.77]
[1761981933231,4.13630532,186.12,186.1,2.77]
[1761981933439,4.13630532,186.11,186.1,2.77]
[1761981933946,6.99630532,186.11,186.09,4.99229293]
[1761981934244,4.13630532,186.1,186.09,7.76229293]
[1761981934939,4.13630532,186.1,186.09,4.99229293]
[1761981935643,4.13630532,186.1,186.09,7.76229293]
[1761981936145,6.99681561,186.13,186.1,2.77]
[1761981936344,4.13698714,186.12,186.1,2.77]
[1761981936546,4.13698714,186.11,186.1,2.77]
[1761981936747,4.13698714,186.12,186.1,2.77]
[1761981936939,4.13698714,186.11,186.1,2.77]
[1761981937540,4.13698714,186.11,186.1,4.99229293]
[1761981938739,4.13698714,186.13,186.1,4.99229293]
[1761981938944,4.13698714,186.12,186.1,4.99229293]
[1761981939144,2.86,186.14,186.11,2.77]
[1761981939349,6.99700715,186.13,186.11,2.77]
[1761981939547,4.13700715,186.12,186.11,2.77]
[1761981944957,6.99700715,186.12,186.1,7.76229293]
[1761981945161,4.13700715,186.11,186.1,7.76229293]
[1761981949158,2.86,186.12,186.1,7.76229293]
[1761981951663,2.74,186.16,186.11,2.77]
[1761981951867,2.74,186.14,186.11,2.77]
[1761981952162,6.87115653,186.13,186.11,2.77]
[1761981952358,4.13115653,186.12,186.11,2.77]
[1761981954369,6.87115653,186.12,186.11,2.77]
[1761981955069,4.13115653,186.12,186.11,2.77]
[1761981955561,6.87115653,186.14,186.11,2.77]
[1761981955767,6.87115653,186.13,186.11,2.77]
[1761981956065,4.13115653,186.12,186.11,2.77]
[1761981957467,4.13115653,186.12,186.11,7.76229293]
[1761981957769,2.74,186.15,186.12,2.77]
[1761981957976,2.74,186.15,186.13,7.75255989]
[1761981958181,2.74,186.15,186.14,4.98255989]
[1761981958381,1.8308819,186.22,186.14,4.98255989]
[1761981958382,2.74,186.18,186.15,2.77]
[1761981958583,4.13088294,186.17,186.15,2.77]
[1761981958977,2.74,186.16,186.14,4.98255989]
[1761981959177,6.87088294,186.16,186.14,4.98255989]
[1761981959370,4.13088294,186.15,186.14,4.98255989]
[1761981959774,4.13088294,186.15,186.14,7.75255989]
[1761981960071,2.74,186.17,186.15,2.77]
[1761981960275,4.13103052,186.16,186.15,2.77]
[1761981962083,4.13103052,186.16,186.15,7.75255989]
[1761981963583,2.74,186.2,186.16,2.77]
[1761981963778,4.13137127,186.19,186.17,2.77]
[1761981963978,4.13137127,186.18,186.17,2.77]
[1761981964178,6.87137127,186.19,186.17,2.77]
[1761981964385,4.13137127,186.18,186.17,2.77]
[1761981964985,2.74,186.22,186.17,2.77]
[1761981965180,15.81393482,186.29,186.19,2.77]
[1761981965181,6.8706062,186.21,186.19,2.77]
[1761981965391,4.1306062,186.2,186.19,2.77]
[1761981965775,2.74,186.21,186.19,7.74937082]
[1761981966179,2.74,186.23,186.2,2.77]
[1761981966383,4.12655187,186.22,186.2,2.77]
[1761981966577,4.12655187,186.22,186.21,2.77]
[1761981967085,2.74,186.24,186.21,2.77]
[1761981967284,4.1262992,186.23,186.21,2.77]
[1761981967679,2.74,186.27,186.21,2.77]
[1761981967887,2.74,186.25,186.22,2.77]
[1761981968789,2.74,186.31,186.22,7.74937082]
[1761981968988,2.74,186.29,186.23,2.77]
[1761981969286,2.74,186.27,186.23,2.77]
[1761981971593,2.74,186.31,186.23,2.77]
[1761981971892,2.74,186.29,186.23,2.77]
[1761981972093,4.11377968,186.28,186.23,2.77]
[1761981972283,2.74,186.29,186.23,2.77]
[1761981972687,75.7,186.38,186.25,2.77]
[1761981972890,75.7,186.38,186.26,2.77]
[1761981972891,2.74,186.34,186.26,2.77]
[1761981973091,2.74,186.32,186.26,2.77]
[1761981973393,4.11133966,186.33,186.23,6.81025272]
[1761981973394,2.74,186.3,186.23,6.81025272]
[1761981973593,2.74,186.3,186.23,2.77]
[1761981974191,2.74,186.3,186.24,2.77]
[1761981978088,1.8308819,186.34,186.24,2.77]
[1761981978289,2.84,186.32,186.25,2.72]
[1761981978495,2.84,186.32,186.26,4.05915011]
[1761981978696,2.84,186.32,186.27,4.05915011]
[1761981978899,2.84,186.32,186.25,2.72]
[1761981979195,2.84,186.32,186.26,4.0589586]
[1761981979396,2.84,186.32,186.27,4.0589586]
[1761981979596,2.84,186.32,186.25,2.72]
[1761981979793,2.84,186.32,186.26,4.05611711]
[1761981980097,2.84,186.32,186.23,2.95]
[1761981980302,2.84,186.32,186.24,7.0078702]
[1761981980595,2.84,186.32,186.25,4.0578702]
[1761981980797,2.84,186.32,186.24,2.95]
[1761981980986,2.84,186.32,186.25,4.05860725]
[1761981981188,2.84,186.32,186.24,2.95]
[1761981981499,2.84,186.32,186.25,4.05879935]
[1761981981690,2.84,186.32,186.24,2.95]
[1761981981890,2.84,186.32,186.25,4.05971922]
[1761981982090,2.84,186.32,186.24,2.95]
[1761981982398,2.84,186.32,186.25,4.05972027]
[1761981982603,2.84,186.32,186.24,2.95]
[1761981982896,2.84,186.32,186.26,2.95]
[1761981986601,2.84,186.32,186.28,2.95]
[1761981987202,2.84,186.32,186.25,2.95]
[1761981987501,2.84,186.32,186.26,4.05764983]
[1761981987698,2.84,186.32,186.27,4.05764983]
[1761981987890,2.84,186.32,186.28,2.95]
[1761981989902,2.88,186.35,186.28,2.95]
[1761981991205,2.88,186.35,186.29,4.05328223]
[1761981991414,2.88,186.35,186.31,2.95]
[1761981991801,2.88,186.35,186.28,2.95]
[1761981992001,2.88,186.35,186.29,7.00329118]
[1761981992204,2.88,186.35,186.3,7.00329118]
[1761981992403,2.88,186.35,186.31,4.05329118]
[1761981992604,2.88,186.35,186.3,2.95]
[1761981992804,2.88,186.35,186.32,2.95]
[1761981993215,2.88,186.38,186.32,2.95]
[1761981995806,2.88,186.36,186.32,2.95]
[1761981997613,2.88,186.36,186.28,9.81317082]
[1761981997614,2.88,186.36,186.29,2.95]
[1761981997818,2.88,186.36,186.31,2.95]
[1761981998114,2.88,186.36,186.32,7.00505236]
[1761981998317,2.88,186.36,186.33,4.05577084]
[1761981998513,2.88,186.36,186.32,2.95]
[1761981998708,2.88,186.36,186.34,2.95]
[1761982001419,2.88,186.39,186.34,2.95]
[1761982001616,2.88,186.37,186.34,2.95]
[1761982002414,2.88,186.37,186.35,4.06119404]
[1761982002613,2.88,186.37,186.34,2.95]
[1761982002816,2.88,186.37,186.35,4.06085136]
[1761982003021,2.88,186.37,186.34,2.95]
[1761982003209,2.88,186.37,186.35,4.06039217]
[1761982003410,2.88,186.37,186.34,2.95]
[1761982003616,2.88,186.37,186.35,4.06153942]
[1761982003814,2.88,186.37,186.34,2.95]
[1761982004119,2.88,186.37,186.35,4.06153942]
[1761982004319,2.88,186.37,186.31,7.92937082]
[1761982004510,2.88,186.37,186.32,7.01323187]
[1761982004712,2.88,186.37,186.33,4.06323187]
[1761982004912,2.88,186.37,186.34,4.06323187]
[1761982005114,2.88,186.37,186.35,4.06323187]
[1761982005315,2.88,186.35,186.32,2.95]
[1761982005515,2.88,186.35,186.33,4.06305386]
[1761982005710,2.85492915,186.42,186.34,7.01305386]
[1761982006018,2.88,186.4,186.35,4.06305386]
[1761982006212,2.9,186.38,186.36,4.06305386]
[1761982006409,2.9,186.36,186.31,4.97937082]
[1761982006611,2.9,186.36,186.32,6.99501919]
[1761982006907,2.9,186.36,186.33,4.06501919]
[1761982007218,2.9,186.36,186.34,4.06501919]
[1761982007426,2.9,186.36,186.35,4.06501919]
[1761982007608,7.00833892,186.36,186.35,4.06501919]
[1761982008224,7.00833892,186.36,186.35,4.06877971]
[1761982009639,4.10833892,186.36,186.35,6.99877971]
[1761982009818,7.00833892,186.38,186.35,6.99877971]
[1761982010120,4.10833892,186.37,186.36,4.06877971]
[1761982011529,4.10833892,186.37,186.36,6.99877971]
[1761982011826,2.9,186.4,186.37,2.93]
[1761982012034,2.9,186.4,186.38,6.99877971]
[1761982012223,7.01445426,186.39,186.37,4.94647654]
[1761982012525,2.9,186.45,186.38,4.06785699]
[1761982012726,2.9,186.43,186.39,4.06785699]
[1761982012932,2.9,186.41,186.4,4.06785699]
[1761982013122,7.01434137,186.41,186.4,4.06785699]
[1761982014528,2.9,186.4,186.36,2.93]
[1761982014725,7.01434137,186.39,186.37,4.06747801]
[1761982014925,4.11434137,186.38,186.36,2.93]
[1761982015125,4.11434137,186.38,186.37,4.06769954]
[1761982015529,4.11434137,186.38,186.37,6.99769954]
[1761982015726,4.11434137,186.38,186.37,4.06769954]
[1761982018318,7.01434137,186.38,186.37,4.06769954]
[1761982018926,2.9,186.37,186.32,4.94647654]
[1761982019128,7.01434137,186.36,186.33,6.99950151]
[1761982019325,2.9,186.36,186.34,4.06950151]
[1761982019529,2.9,186.36,186.35,4.06950151]
[1761982020331,7.01522098,186.36,186.35,4.06950151]
[1761982021034,2.9,186.36,186.35,4.06950151]
[1761982021930,7.01549293,186.36,186.35,4.06950151]
[1761982024230,2.9,186.35,186.3,7.87647654]
[1761982024431,2.85492915,186.37,186.31,4.07057821]
[1761982024432,2.9,186.33,186.31,4.07057821]
[1761982024728,2.9,186.33,186.3,7.87647654]
[1761982024729,2.9,186.33,186.32,4.07057821]
[1761982024928,7.01733565,186.33,186.32,4.07057821]
[1761982025738,2.9,186.33,186.32,4.07057821]
[1761982026436,7.01905052,186.33,186.32,4.07057821]
[1761982029146,2.9,186.32,186.27,4.94647654]
[1761982029332,2.9,186.3,186.28,4.07720487]
[1761982029538,7.01905052,186.29,186.27,4.94647654]
[1761982029846,2.9,186.29,186.28,4.07720978]
[1761982030036,7.02295969,186.29,186.28,4.07720978]
[1761982033951,2.9,186.28,186.23,9.69198681]
[1761982034244,2.9,186.26,186.24,4.07748421]
[1761982034441,7.02295969,186.25,186.23,9.69198681]
[1761982034637,2.9,186.25,186.24,4.07640097]
[1761982035231,2.9,186.24,186.23,9.69198681]
[1761982035445,7.01935486,186.24,186.23,13.76644193]
[1761982036945,4.11935486,186.24,186.23,16.55644193]
[1761982037140,6.78935486,186.26,186.23,16.55644193]
[1761982037332,4.11935486,186.25,186.24,2.79]
[1761982037536,4.11935486,186.25,186.24,6.86005698]
[1761982038250,4.11935486,186.25,186.24,2.79]
[1761982039047,6.78935486,186.25,186.23,9.69198681]
[1761982039246,2.67,186.25,186.23,9.69198681]
[1761982040150,2.84,186.29,186.23,12.63198681]
[1761982040352,2.84,186.27,186.23,12.63198681]
[1761982040645,4.13618289,186.26,186.24,2.94]
[1761982041548,5.96470272,186.26,186.24,2.94]
[1761982041848,1.82851983,186.26,186.24,2.94]
[1761982043053,1.82851983,186.26,186.23,12.63198681]
[1761982043551,4.66851983,186.26,186.23,12.63198681]
[1761982044257,2.84,186.25,186.23,12.63198681]
[1761982044641,1.82851983,186.26,186.23,12.63198681]
[1761982044845,1.82851983,186.26,186.24,2.94]
[1761982045154,1.82851983,186.26,186.23,9.69198681]
[1761982045155,4.66851983,186.26,186.23,9.69198681]
[1761982045753,4.66851983,186.26,186.23,12.63198681]
[1761982046252,2.84,186.25,186.23,9.69198681]
[1761982046755,4.66851983,186.26,186.23,12.63198681]
[1761982047654,1.82851983,186.26,186.24,2.94]
[1761982049857,4.66851983,186.26,186.24,2.94]
[1761982050053,4.66851983,186.26,186.23,12.63198681]
[1761982050652,2.84,186.25,186.23,12.63198681]
[1761982050858,2.84,186.25,186.23,9.69198681]
[1761982051351,2.84,186.25,186.23,12.63198681]
[1761982051554,1.82851983,186.26,186.23,12.63198681]
[1761982051762,4.66851983,186.26,186.23,12.63198681]
[1761982052760,4.66851983,186.26,186.24,2.94]
[1761982053461,2.84,186.25,186.23,9.69198681]
[1761982053850,4.12929279,186.24,186.23,9.69198681]
[1761982054056,6.96929279,186.24,186.23,9.69198681]
[1761982059361,4.12929279,186.24,186.23,9.69198681]
[1761982062162,6.96929279,186.24,186.23,9.69198681]
[1761982062852,4.12929279,186.24,186.23,9.69198681]
[1761982064161,4.12929279,186.24,186.23,12.63198681]
[1761982064461,4.12929279,186.24,186.23,9.69198681]
[1761982064849,6.96929279,186.24,186.23,9.69198681]
[1761982069562,4.12929279,186.24,186.23,9.69198681]
[1761982069770,6.97929279,186.24,186.23,9.69198681]
[1761982076975,4.12929279,186.24,186.23,9.69198681]
[1761982077176,4.12929279,186.24,186.23,12.56198681]
[1761982086485,6.97929279,186.24,186.23,9.69198681]
[1761982086685,2.85,186.23,186.17,2.87]
[1761982086880,1.82851983,186.2,186.17,2.87]
[1761982087081,4.12929279,186.19,186.17,2.87]
[1761982087285,4.12929279,186.18,186.17,2.87]
[1761982089084,4.12929279,186.18,186.16,2.87]
[1761982089275,5.95781262,186.17,186.16,2.87]
[1761982089891,8.80781262,186.17,186.14,7.81647654]
[1761982090082,8.80781262,186.17,186.12,7.81647654]
[1761982090083,6.97929279,186.16,186.12,7.81647654]
[1761982090387,4.12929279,186.15,186.13,2.87]
[1761982090580,4.12929279,186.14,186.13,2.87]
[1761982092084,4.12929279,186.14,186.12,2.87]
[1761982092384,4.12929279,186.13,186.12,2.87]
[1761982098596,4.12929279,186.13,186.1,2.71]
[1761982098796,4.12929279,186.12,186.1,2.71]
[1761982098997,4.12929279,186.11,186.1,2.71]
[1761982101400,4.59810617,186.11,186.1,2.71]
[1761982102204,4.59810617,186.11,186.1,3.79]
[1761982102796,4.59810617,186.11,186.1,2.71]
[1761982121414,4.59810617,186.11,186.1,7.65647654]
[1761982125518,7.50810617,186.11,186.08,14.28929191]
[1761982125713,4.59810617,186.1,186.08,14.28929191]
[1761982125918,4.59810617,186.09,186.08,9.45029191]
[1761982126216,4.59810617,186.09,186.08,2.77]
[1761982129421,4.59810617,186.09,186.05,4.96837772]
[1761982129422,2.92,186.08,186.05,4.96837772]
[1761982129620,7.51810617,186.07,186.04,7.76837772]
[1761982129921,8.84875612,186.06,186.04,7.76837772]
[1761982130116,8.84875612,186.05,186.04,7.76837772]
[1761982137330,8.84875612,186.05,186.04,2.8]
[1761982140934,8.84875612,186.05,186.04,7.76837772]
[1761982141134,8.79030527,186.05,186.04,7.76837772]
[1761982145331,8.79030527,186.05,186.04,2.8]
[1761982148835,4.53965532,186.05,186.04,7.76837772]
[1761982149737,4.53965532,186.05,186.04,2.8]
[1761982149939,8.83337939,186.05,186.04,2.8]
[1761982151234,2.92,186.04,186.03,4.96837772]
[1761982151435,7.45965532,186.04,186.03,4.96837772]
[1761982151638,11.75389421,186.04,186.03,4.96837772]
[1761982159052,11.75389421,186.04,186.01,4.96837772]
[1761982159053,2.67,186.03,186.01,4.96837772]
[1761982159243,2.67,186.01,185.99,9.80987772]
[1761982159443,7.20965532,186.0,185.99,9.80987772]
[1761982160548,2.95,186.03,185.99,7.6415]
[1761982160745,11.77486666,186.02,186.0,4.97492615]
[1761982160949,8.82486666,186.01,186.0,4.97492615]
[1761982161151,8.82486662,186.01,186.0,4.97492615]
[1761982161351,8.82474845,186.01,186.0,4.97492615]
[1761982162254,8.82473829,186.01,186.0,4.97492615]
[1761982162455,11.77473829,186.01,186.0,4.97492615]
[1761982163255,7.47969419,186.01,186.0,4.97492615]
[1761982163443,11.77483125,186.01,186.0,4.97492615]
[1761982164454,11.77503179,186.01,186.0,4.97492615]
[1761982166755,7.47969419,186.01,186.0,4.97492615]
[1761982166949,11.73616357,186.01,185.99,9.81642615]
[1761982167149,4.52969419,186.0,185.99,9.81642615]
[1761982167358,4.52969419,186.0,185.99,4.8415]
[1761982168257,4.52969419,186.0,185.99,9.81845774]
[1761982168459,4.52969419,186.0,185.99,4.8415]
[1761982168958,7.47969419,186.0,185.99,4.8415]
[1761982169459,7.47969419,186.0,185.99,7.6415]
[1761982169659,4.52969419,186.0,185.99,7.6415]
[1761982170960,4.52969419,186.0,185.99,14.32179191]
[1761982178065,1.8324958,186.09,186.01,4.841]
[1761982178362,4.26292337,186.08,186.02,7.78549257]
[1761982178551,4.26292337,186.07,186.03,2.8]
[1761982178752,4.26292337,186.06,186.03,2.8]
[1761982178956,4.26292337,186.05,186.03,2.8]
[1761982179158,4.26292337,186.04,186.03,2.8]
[1761982179465,4.26292337,186.04,186.03,7.78549257]
[1761982182272,4.26292337,186.04,186.03,2.8]
[1761982182568,4.26292337,186.04,186.03,7.78280918]
[1761982183170,4.26292337,186.04,186.03,2.8]
[1761982189173,4.26292337,186.04,186.03,9.48029191]
[1761982190179,8.70500265,186.04,186.03,9.48029191]
[1761982191265,9.87500265,186.04,186.03,6.68029191]
[1761982196279,9.87500265,186.04,186.03,9.53029191]
[1761982196678,9.87500265,186.04,186.03,2.85]
[1761982197070,8.70500265,186.04,186.03,2.85]
[1761982197570,8.70500265,186.04,186.03,9.53029191]
[1761982197877,8.70500265,186.04,186.03,2.85]
[1761982198084,8.70500265,186.04,186.03,9.4918989]
[1761982198269,8.70500265,186.04,186.03,2.85]
[1761982198876,8.70500265,186.04,186.03,9.49137354]
[1761982200381,9.533e-05,186.04,186.03,2.85]
[1761982200585,1.17,186.1,186.02,4.8406]
[1761982200586,1.17,186.1,186.06,2.85]
[1761982200777,1.17,186.1,186.08,2.85]
[1761982201375,1.17,186.1,186.07,4.97980903]
[1761982201579,1.17,186.1,186.07,7.82980903]
[1761982202477,1.17,186.14,186.08,7.82980903]
[1761982205384,1.17,186.14,186.08,12.66880903]
[1761982205581,1.17,186.14,186.11,2.85]
[1761982205784,1.17,186.17,186.11,2.85]
[1761982209994,1.17,186.17,186.12,2.85]
[1761982212408,1.17,186.15,186.12,2.85]
[1761982212601,8.55160467,186.14,186.12,2.85]
[1761982212802,8.55160467,186.13,186.12,2.85]
[1761982213204,8.55081286,186.13,186.12,2.85]
[1761982214106,4.34026274,186.13,186.12,2.85]
[1761982214299,1.17,186.12,186.1,4.97980903]
[1761982214505,1.17,186.12,186.09,7.82980903]
[1761982214700,9.72019018,186.12,186.09,7.82980903]
[1761982214902,1.17,186.12,186.09,7.82980903]
[1761982215806,9.71987277,186.12,186.09,7.82980903]
[1761982216005,1.17,186.12,186.09,7.82980903]
[1761982216906,9.7149441,186.12,186.09,7.82980903]
[1761982217107,1.17,186.12,186.09,7.82980903]
[1761982217298,1.17,186.12,186.09,4.97980903]
[1761982217506,1.17,186.09,186.06,4.97980903]